[Event "Live Chess"]
[Site "Chess.com"]
[Date "2023.05.20"]
[Round "-"]
[White "Fazer180"]
[Black "Driftboard"]
[Result "1-0"]
[WhiteElo "1731"]
[BlackElo "859"]
[TimeControl "300"]
[EndTime "9:17:56 PDT"]
[Termination "Fazer180 won by checkmate"]

1. e4 {[%clk 0:04:58.5]} 1... e5 {[%clk 0:04:58.4]} 2. Nf3 {[%clk 0:04:57.5]}
2... Nc6 {[%clk 0:04:55.3]} 3. d4 {[%clk 0:04:57.4]} 3... exd4 {[%clk
0:04:53.3]} 4. Nxd4 {[%clk 0:04:57.3]} 4... Nxd4 {[%clk 0:04:52.3]} 5. Qxd4
{[%clk 0:04:56.5]} 5... Nf6 {[%clk 0:04:51.5]} 6. Nc3 {[%clk 0:04:55.1]} 6...
Ng8 {[%clk 0:04:50.6]} 7. Bf4 {[%clk 0:04:50.2]} 7... Bd6 {[%clk 0:04:49.1]} 8.
Bxd6 {[%clk 0:04:48.5]} 8... cxd6 {[%clk 0:04:48.4]} 9. Qxd6 {[%clk 0:04:47.7]}
9... Qe7 {[%clk 0:04:46.6]} 10. Qd4 {[%clk 0:04:43]} 10... Nf6 {[%clk
0:04:40.7]} 11. Bc4 {[%clk 0:04:38.2]} 11... O-O {[%clk 0:04:34.8]} 12. O-O
{[%clk 0:04:35.6]} 12... b6 {[%clk 0:04:32.4]} 13. Rfe1 {[%clk 0:04:28]} 13...
Re8 {[%clk 0:04:30.6]} 14. Nd5 {[%clk 0:04:24.2]} 14... Nxd5 {[%clk 0:04:25.2]}
15. Qxd5 {[%clk 0:04:20.8]} 15... Qe6 {[%clk 0:04:07.3]} 16. Qxa8 {[%clk
0:04:13.7]} 16... Qxc4 {[%clk 0:03:52.5]} 17. c3 {[%clk 0:04:06.8]} 17... h6
{[%clk 0:03:39.9]} 18. Qxa7 {[%clk 0:04:03.9]} 18... Rxe4 {[%clk 0:03:28.7]} 19.
Rxe4 {[%clk 0:03:59.4]} 19... Qxe4 {[%clk 0:03:27.2]} 20. Qxb6 {[%clk
0:03:55.7]} 20... Bb7 {[%clk 0:03:25.1]} 21. f3 {[%clk 0:03:51.5]} 21... Qc6
{[%clk 0:03:10.1]} 22. Qxc6 {[%clk 0:03:49.7]} 22... Bxc6 {[%clk 0:03:07.3]} 23.
a4 {[%clk 0:03:48.6]} 23... Bd5 {[%clk 0:03:02.5]} 24. b4 {[%clk 0:03:43.8]}
24... Kf8 {[%clk 0:02:59.5]} 25. b5 {[%clk 0:03:41]} 25... Bc4 {[%clk
0:02:56.8]} 26. Rb1 {[%clk 0:03:35.1]} 26... Ke8 {[%clk 0:02:55.3]} 27. b6
{[%clk 0:03:32.9]} 27... Ba6 {[%clk 0:02:41.8]} 28. b7 {[%clk 0:03:31.9]} 28...
Bxb7 {[%clk 0:02:40.4]} 29. Rxb7 {[%clk 0:03:31.8]} 29... Kd8 {[%clk 0:02:38.9]}
30. a5 {[%clk 0:03:30.3]} 30... Kc8 {[%clk 0:02:37.9]} 31. Rb1 {[%clk
0:03:29.6]} 31... Kc7 {[%clk 0:02:33.8]} 32. a6 {[%clk 0:03:29.1]} 32... Kc6
{[%clk 0:02:33]} 33. a7 {[%clk 0:03:28.6]} 33... Kc5 {[%clk 0:02:32.6]} 34. a8=Q
{[%clk 0:03:28.1]} 34... Kc4 {[%clk 0:02:32.5]} 35. Qc8+ {[%clk 0:03:25.4]}
35... Kd3 {[%clk 0:02:31.2]} 36. Qxd7+ {[%clk 0:03:21.7]} 36... Kxc3 {[%clk
0:02:28.5]} 37. Rc1+ {[%clk 0:03:21]} 37... Kb2 {[%clk 0:02:27.2]} 38. Rc8
{[%clk 0:03:18.9]} 38... Kb3 {[%clk 0:02:26.1]} 39. Qb7+ {[%clk 0:03:18.3]}
39... Ka4 {[%clk 0:02:25.5]} 40. Ra8# {[%clk 0:03:18]} 1-0

[Event "Live Chess"]
[Site "Chess.com"]
[Date "2023.05.20"]
[Round "-"]
[White "Nico14021974"]
[Black "wadsy27"]
[Result "0-1"]
[WhiteElo "993"]
[BlackElo "2584"]
[TimeControl "300"]
[EndTime "9:17:57 PDT"]
[Termination "wadsy27 won by checkmate"]

1. e4 {[%clk 0:04:57.5]} 1... e6 {[%clk 0:04:57.7]} 2. Nf3 {[%clk 0:04:54.2]}
2... d5 {[%clk 0:04:57.6]} 3. Nc3 {[%clk 0:04:51]} 3... Nf6 {[%clk 0:04:55.6]}
4. Bb5+ {[%clk 0:04:46]} 4... c6 {[%clk 0:04:53.4]} 5. Be2 {[%clk 0:04:42.4]}
5... dxe4 {[%clk 0:04:50.4]} 6. d3 {[%clk 0:04:38.5]} 6... exf3 {[%clk
0:04:49.1]} 7. gxf3 {[%clk 0:04:37]} 7... Bd6 {[%clk 0:04:47.9]} 8. Ne4 {[%clk
0:04:31.1]} 8... Bc7 {[%clk 0:04:46.8]} 9. b4 {[%clk 0:04:26.6]} 9... Nxe4
{[%clk 0:04:43]} 10. dxe4 {[%clk 0:04:25.1]} 10... Qxd1+ {[%clk 0:04:40.6]} 11.
Kxd1 {[%clk 0:04:23.7]} 11... Nd7 {[%clk 0:04:33.1]} 12. f4 {[%clk 0:04:20.2]}
12... a5 {[%clk 0:04:25.5]} 13. bxa5 {[%clk 0:04:18.8]} 13... Rxa5 {[%clk
0:04:24.4]} 14. Bd3 {[%clk 0:04:13.4]} 14... Nc5 {[%clk 0:04:21.5]} 15. Be2
{[%clk 0:04:11.3]} 15... Nxe4 {[%clk 0:04:20]} 16. Rf1 {[%clk 0:04:04.4]} 16...
Rd5+ {[%clk 0:04:18.9]} 17. Ke1 {[%clk 0:04:02.7]} 17... Ba5+ {[%clk 0:04:18.1]}
18. Bd2 {[%clk 0:03:54.4]} 18... Bxd2+ {[%clk 0:04:16.9]} 19. Kd1 {[%clk
0:03:50.6]} 19... Nc3# {[%clk 0:04:16.8]} 0-1

[Event "Live Chess"]
[Site "Chess.com"]
[Date "2023.05.20"]
[Round "-"]
[White "Doge_Dandolo"]
[Black "gombofour"]
[Result "1-0"]
[WhiteElo "2058"]
[BlackElo "862"]
[TimeControl "300"]
[EndTime "9:18:01 PDT"]
[Termination "Doge_Dandolo won by resignation"]

1. Nf3 {[%clk 0:04:58.4]} 1... c5 {[%clk 0:04:58.6]} 2. c4 {[%clk 0:04:57.1]}
2... Nc6 {[%clk 0:04:58]} 3. d4 {[%clk 0:04:55.8]} 3... cxd4 {[%clk 0:04:55.9]}
4. Nxd4 {[%clk 0:04:54.6]} 4... d6 {[%clk 0:04:55.4]} 5. g3 {[%clk 0:04:51.9]}
5... Nf6 {[%clk 0:04:52.9]} 6. Bg2 {[%clk 0:04:50.8]} 6... Bd7 {[%clk
0:04:51.8]} 7. Nc3 {[%clk 0:04:49.4]} 7... g6 {[%clk 0:04:48.3]} 8. O-O {[%clk
0:04:48]} 8... Bg7 {[%clk 0:04:47.8]} 9. Bg5 {[%clk 0:04:40.8]} 9... O-O {[%clk
0:04:46]} 10. Rc1 {[%clk 0:04:39.2]} 10... h6 {[%clk 0:04:45]} 11. Be3 {[%clk
0:04:34.4]} 11... e5 {[%clk 0:04:39]} 12. Nc2 {[%clk 0:04:30.3]} 12... a6 {[%clk
0:04:29.5]} 13. Nd5 {[%clk 0:04:19.8]} 13... Nxd5 {[%clk 0:04:26.6]} 14. Bxd5
{[%clk 0:04:18.4]} 14... Re8 {[%clk 0:04:08.7]} 15. a3 {[%clk 0:04:14.5]} 15...
Rc8 {[%clk 0:03:59.9]} 16. Nb4 {[%clk 0:04:09]} 16... Nxb4 {[%clk 0:03:56]} 17.
axb4 {[%clk 0:04:07.9]} 17... b5 {[%clk 0:03:55.2]} 18. b3 {[%clk 0:04:03.5]}
18... bxc4 {[%clk 0:03:52.3]} 19. bxc4 {[%clk 0:04:02.1]} 19... Qf6 {[%clk
0:03:39.8]} 20. Qb3 {[%clk 0:03:53.2]} 20... Be6 {[%clk 0:03:37.4]} 21. Rfd1
{[%clk 0:03:46.7]} 21... Bxd5 {[%clk 0:03:35.5]} 22. Rxd5 {[%clk 0:03:44.4]}
22... Rc7 {[%clk 0:03:27]} 23. Rcd1 {[%clk 0:03:40.1]} 23... Rd8 {[%clk
0:03:22.9]} 24. c5 {[%clk 0:03:36.3]} 24... Rcd7 {[%clk 0:03:18.2]} 25. c6
{[%clk 0:03:30.5]} 25... Rc7 {[%clk 0:03:17.4]} 26. Qc4 {[%clk 0:03:27.7]} 26...
Bf8 {[%clk 0:03:05.5]} 27. Bb6 {[%clk 0:03:24.3]} 27... Rcc8 {[%clk 0:02:53.6]}
28. Bxd8 {[%clk 0:03:22.3]} 28... Rxd8 {[%clk 0:02:53.5]} 29. Qxa6 {[%clk
0:03:17.9]} 29... h5 {[%clk 0:02:48.3]} 30. c7 {[%clk 0:03:15.7]} 30... Rc8
{[%clk 0:02:47.3]} 31. Qxc8 {[%clk 0:03:14.3]} 1-0

[Event "Live Chess"]
[Site "Chess.com"]
[Date "2023.05.20"]
[Round "-"]
[White "HD_IN4k"]
[Black "CheckThis4"]
[Result "0-1"]
[WhiteElo "299"]
[BlackElo "2535"]
[TimeControl "300"]
[EndTime "9:18:06 PDT"]
[Termination "CheckThis4 won by checkmate"]

1. d4 {[%clk 0:04:53.8]} 1... Nf6 {[%clk 0:04:57.8]} 2. Nf3 {[%clk 0:04:47.1]}
2... c5 {[%clk 0:04:54.6]} 3. e3 {[%clk 0:04:42.5]} 3... g6 {[%clk 0:04:51.7]}
4. dxc5 {[%clk 0:04:38.1]} 4... Bg7 {[%clk 0:04:49.9]} 5. Nc3 {[%clk 0:04:27.3]}
5... O-O {[%clk 0:04:46]} 6. e4 {[%clk 0:04:26.2]} 6... b6 {[%clk 0:04:24]} 7.
Nd5 {[%clk 0:04:22.8]} 7... Nxe4 {[%clk 0:04:15.8]} 8. Qe2 {[%clk 0:04:08.4]}
8... Nxc5 {[%clk 0:04:06.4]} 9. Be3 {[%clk 0:03:54.8]} 9... Nc6 {[%clk
0:04:01.9]} 10. Nd4 {[%clk 0:03:39.8]} 10... Nxd4 {[%clk 0:03:50]} 11. Bxd4
{[%clk 0:03:37.5]} 11... Bxd4 {[%clk 0:03:46.5]} 12. Rd1 {[%clk 0:03:33.5]}
12... Bf6 {[%clk 0:03:32.6]} 13. Nxf6+ {[%clk 0:03:19]} 13... exf6 {[%clk
0:03:31]} 14. Qg4 {[%clk 0:03:01.2]} 14... Re8+ {[%clk 0:03:26.3]} 15. Be2
{[%clk 0:02:56.4]} 15... d5 {[%clk 0:03:16.9]} 16. O-O {[%clk 0:02:53.9]} 16...
Bxg4 {[%clk 0:03:15]} 17. Bxg4 {[%clk 0:02:50.7]} 17... f5 {[%clk 0:03:14]} 18.
Rfe1 {[%clk 0:02:49.6]} 18... Rxe1+ {[%clk 0:03:11.7]} 19. Rxe1 {[%clk
0:02:48.6]} 19... fxg4 {[%clk 0:03:10.8]} 20. h3 {[%clk 0:02:43.7]} 20... gxh3
{[%clk 0:03:09.5]} 21. gxh3 {[%clk 0:02:42.5]} 21... Ne4 {[%clk 0:03:08.7]} 22.
f3 {[%clk 0:02:40]} 22... Qh4 {[%clk 0:03:06.7]} 23. Re3 {[%clk 0:02:36.6]}
23... Qf2+ {[%clk 0:03:04.6]} 24. Kh1 {[%clk 0:02:32.7]} 24... Ng3# {[%clk
0:03:03.5]} 0-1

[Event "Live Chess"]
[Site "Chess.com"]
[Date "2023.05.20"]
[Round "-"]
[White "PackedNote"]
[Black "hello505050"]
[Result "1-0"]
[WhiteElo "778"]
[BlackElo "1071"]
[TimeControl "300"]
[EndTime "9:18:11 PDT"]
[Termination "PackedNote won by resignation"]

1. e4 {[%clk 0:04:58.7]} 1... e5 {[%clk 0:04:59.5]} 2. Nf3 {[%clk 0:04:57.9]}
2... Nc6 {[%clk 0:04:58.8]} 3. Bb5 {[%clk 0:04:57.1]} 3... Nd4 {[%clk 0:04:58]}
4. Nxd4 {[%clk 0:04:40]} 4... exd4 {[%clk 0:04:57.9]} 5. c3 {[%clk 0:04:38.7]}
5... a6 {[%clk 0:04:55.6]} 6. Ba4 {[%clk 0:04:37.3]} 6... b5 {[%clk 0:04:53.1]}
7. Bb3 {[%clk 0:04:36.4]} 7... d3 {[%clk 0:04:50.5]} 8. O-O {[%clk 0:04:32.9]}
8... Bd6 {[%clk 0:04:45.8]} 9. Qf3 {[%clk 0:04:31.1]} 9... Nf6 {[%clk
0:04:41.8]} 10. Qxd3 {[%clk 0:04:29.8]} 10... c5 {[%clk 0:04:35.6]} 11. Bd5
{[%clk 0:04:25.9]} 11... c4 {[%clk 0:04:30.4]} 12. Qd4 {[%clk 0:04:13.8]} 12...
Rb8 {[%clk 0:04:25.8]} 13. e5 {[%clk 0:04:12.8]} 13... Bxe5 {[%clk 0:04:21.1]}
14. Qxe5+ {[%clk 0:04:10.7]} 14... Qe7 {[%clk 0:04:14.9]} 15. Qxb8 {[%clk
0:04:07.8]} 15... O-O {[%clk 0:04:04.7]} 16. Qa7 {[%clk 0:03:57.3]} 16... Nxd5
{[%clk 0:04:01.4]} 17. Qd4 {[%clk 0:03:52.3]} 17... Qf6 {[%clk 0:03:54.5]} 18.
Qxf6 {[%clk 0:03:49.5]} 18... Nxf6 {[%clk 0:03:54.3]} 19. b3 {[%clk 0:03:41.2]}
19... d5 {[%clk 0:03:50.9]} 20. bxc4 {[%clk 0:03:39.7]} 20... dxc4 {[%clk
0:03:50.8]} 21. Ba3 {[%clk 0:03:31.7]} 21... Re8 {[%clk 0:03:48.8]} 22. Bb4
{[%clk 0:03:27.6]} 22... Ne4 {[%clk 0:03:35]} 23. f3 {[%clk 0:03:23.4]} 23...
Ng5 {[%clk 0:03:31.1]} 24. Rd1 {[%clk 0:03:17.6]} 24... Re2 {[%clk 0:03:21.3]}
25. d3 {[%clk 0:03:11.5]} 25... cxd3 {[%clk 0:03:11.7]} 26. Rxd3 {[%clk
0:03:11.4]} 26... Bb7 {[%clk 0:03:02.6]} 27. Rd8+ {[%clk 0:03:07.2]} 1-0

[Event "Live Chess"]
[Site "Chess.com"]
[Date "2023.05.20"]
[Round "-"]
[White "viktorskliarov"]
[Black "azimchess2019"]
[Result "1-0"]
[WhiteElo "2644"]
[BlackElo "1329"]
[TimeControl "300"]
[EndTime "9:18:14 PDT"]
[Termination "viktorskliarov won by resignation"]

1. e4 {[%clk 0:04:58.1]} 1... c5 {[%clk 0:04:55.7]} 2. Nf3 {[%clk 0:04:55.8]}
2... d6 {[%clk 0:04:43.5]} 3. d4 {[%clk 0:04:54.6]} 3... cxd4 {[%clk 0:04:33.9]}
4. Qxd4 {[%clk 0:04:54.5]} 4... Nc6 {[%clk 0:04:26.9]} 5. Bb5 {[%clk 0:04:53]}
5... Bd7 {[%clk 0:04:21.6]} 6. Bxc6 {[%clk 0:04:52.3]} 6... Bxc6 {[%clk
0:04:18.1]} 7. Nc3 {[%clk 0:04:51.9]} 7... e6 {[%clk 0:04:02.5]} 8. Bg5 {[%clk
0:04:49.9]} 8... Ne7 {[%clk 0:03:52.8]} 9. O-O-O {[%clk 0:04:48.3]} 9... f6
{[%clk 0:03:46]} 10. Be3 {[%clk 0:04:41.3]} 10... Ng6 {[%clk 0:03:37.1]} 11. h4
{[%clk 0:04:40.2]} 11... e5 {[%clk 0:03:32.5]} 12. Qc4 {[%clk 0:04:37.2]} 12...
Be7 {[%clk 0:03:17.1]} 13. h5 {[%clk 0:04:23.3]} 13... Nf8 {[%clk 0:02:58.9]}
14. Nh4 {[%clk 0:04:13.3]} 14... Nd7 {[%clk 0:02:51.1]} 15. Nf5 {[%clk
0:04:07.9]} 1-0

[Event "Live Chess"]
[Site "Chess.com"]
[Date "2023.05.20"]
[Round "-"]
[White "NatashaRegan"]
[Black "MJMykh"]
[Result "1-0"]
[WhiteElo "1839"]
[BlackElo "950"]
[TimeControl "300"]
[EndTime "9:18:18 PDT"]
[Termination "NatashaRegan won by resignation"]

1. e4 {[%clk 0:04:54.5]} 1... e5 {[%clk 0:04:59]} 2. f4 {[%clk 0:04:52.7]} 2...
exf4 {[%clk 0:04:57.7]} 3. Bc4 {[%clk 0:04:50]} 3... Nc6 {[%clk 0:04:56.1]} 4.
Nf3 {[%clk 0:04:48]} 4... h6 {[%clk 0:04:54.8]} 5. d4 {[%clk 0:04:46.1]} 5...
Nf6 {[%clk 0:04:54]} 6. Nc3 {[%clk 0:04:43.2]} 6... Bb4 {[%clk 0:04:53.6]} 7.
Qe2 {[%clk 0:04:30.1]} 7... Bxc3+ {[%clk 0:04:51.6]} 8. bxc3 {[%clk 0:04:28.3]}
8... O-O {[%clk 0:04:51.3]} 9. e5 {[%clk 0:04:26.8]} 9... Ne8 {[%clk 0:04:46.5]}
10. Bxf4 {[%clk 0:04:24.3]} 10... d6 {[%clk 0:04:44.6]} 11. O-O {[%clk
0:04:17.5]} 11... dxe5 {[%clk 0:04:43.1]} 12. Nxe5 {[%clk 0:04:15.4]} 12... Nxe5
{[%clk 0:04:41.3]} 13. Bxe5 {[%clk 0:04:14.4]} 13... Nd6 {[%clk 0:04:36.5]} 14.
Bb3 {[%clk 0:04:08.3]} 14... Qe7 {[%clk 0:04:25]} 15. Qh5 {[%clk 0:04:05.5]}
15... Ne4 {[%clk 0:03:56.5]} 16. Rae1 {[%clk 0:03:56.4]} 16... Nxc3 {[%clk
0:03:44.9]} 17. Bxg7 {[%clk 0:03:51.7]} 17... Ne2+ {[%clk 0:03:33.4]} 18. Rxe2
{[%clk 0:03:49.8]} 1-0

[Event "Live Chess"]
[Site "Chess.com"]
[Date "2023.05.20"]
[Round "-"]
[White "sup3rm0nk3y"]
[Black "BillW-GrangerIN"]
[Result "1-0"]
[WhiteElo "1335"]
[BlackElo "184"]
[TimeControl "300"]
[EndTime "9:18:21 PDT"]
[Termination "sup3rm0nk3y won by resignation"]

1. e4 {[%clk 0:04:59.5]} 1... e5 {[%clk 0:04:56.8]} 2. Nf3 {[%clk 0:04:58]} 2...
Nc6 {[%clk 0:04:53.1]} 3. Bb5 {[%clk 0:04:56.3]} 3... d6 {[%clk 0:04:45.4]} 4.
d3 {[%clk 0:04:54.9]} 4... Bd7 {[%clk 0:04:39]} 5. Nc3 {[%clk 0:04:51.7]} 5...
Nf6 {[%clk 0:04:35]} 6. O-O {[%clk 0:04:50]} 6... Be7 {[%clk 0:04:30.7]} 7. a4
{[%clk 0:04:41.2]} 7... Bg4 {[%clk 0:04:24.7]} 8. a5 {[%clk 0:04:39.2]} 8... O-O
{[%clk 0:04:18.4]} 9. a6 {[%clk 0:04:36.8]} 9... d5 {[%clk 0:04:07.3]} 10. axb7
{[%clk 0:04:32.8]} 10... Rb8 {[%clk 0:04:02.3]} 11. Bxc6 {[%clk 0:04:30.1]}
11... Qd6 {[%clk 0:03:57.3]} 12. exd5 {[%clk 0:04:26.8]} 12... Qc5 {[%clk
0:03:50.4]} 13. Ne4 {[%clk 0:04:13]} 13... Nxe4 {[%clk 0:03:31.4]} 14. dxe4
{[%clk 0:04:12.9]} 14... Bxf3 {[%clk 0:03:10.7]} 15. gxf3 {[%clk 0:04:00.8]}
15... Bh4 {[%clk 0:02:42.2]} 16. b3 {[%clk 0:03:36.3]} 16... Qd6 {[%clk
0:02:36.4]} 17. c4 {[%clk 0:03:16.5]} 17... Qg6+ {[%clk 0:02:33]} 18. Kh1 {[%clk
0:03:10.9]} 18... Rbd8 {[%clk 0:02:15.1]} 19. Rxa7 {[%clk 0:03:07.9]} 19... Rd6
{[%clk 0:02:06.1]} 20. Ra8 {[%clk 0:03:04.8]} 20... h6 {[%clk 0:01:56.3]} 21.
Rxf8+ {[%clk 0:03:02.8]} 21... Kxf8 {[%clk 0:01:52.4]} 22. b8=Q+ {[%clk
0:03:01.9]} 22... Ke7 {[%clk 0:01:48]} 23. Qe8+ {[%clk 0:02:59.9]} 23... Kf6
{[%clk 0:01:42.8]} 24. Ba3 {[%clk 0:02:48]} 1-0

[Event "Live Chess"]
[Site "Chess.com"]
[Date "2023.05.20"]
[Round "-"]
[White "chessleanstrategist"]
[Black "Pablo_dmp"]
[Result "0-1"]
[WhiteElo "416"]
[BlackElo "1866"]
[TimeControl "300"]
[EndTime "9:18:25 PDT"]
[Termination "Pablo_dmp won by resignation"]

1. c4 {[%clk 0:04:54.6]} 1... Nf6 {[%clk 0:04:58.6]} 2. g3 {[%clk 0:04:48.3]}
2... c6 {[%clk 0:04:56.5]} 3. Bg2 {[%clk 0:04:46.3]} 3... e6 {[%clk 0:04:54]} 4.
Nc3 {[%clk 0:04:45.3]} 4... d5 {[%clk 0:04:50.3]} 5. cxd5 {[%clk 0:04:33.7]}
5... exd5 {[%clk 0:04:50.2]} 6. Nf3 {[%clk 0:04:31.1]} 6... Bf5 {[%clk
0:04:46.7]} 7. O-O {[%clk 0:04:25.6]} 7... Nbd7 {[%clk 0:04:37.8]} 8. e3 {[%clk
0:04:24.4]} 8... Be7 {[%clk 0:04:31.3]} 9. d4 {[%clk 0:04:21.5]} 9... O-O {[%clk
0:04:24.9]} 10. b3 {[%clk 0:04:19.3]} 10... Bb4 {[%clk 0:04:21.2]} 11. Bd2
{[%clk 0:04:06.2]} 11... Qa5 {[%clk 0:04:10.2]} 12. Re1 {[%clk 0:03:43.8]} 12...
Bxc3 {[%clk 0:04:05.8]} 13. Bxc3 {[%clk 0:03:41.3]} 13... Qxc3 {[%clk
0:04:05.7]} 14. Qc1 {[%clk 0:03:34]} 14... Qxc1 {[%clk 0:04:04.2]} 15. Raxc1
{[%clk 0:03:30.8]} 15... Ne4 {[%clk 0:04:04.1]} 16. Nh4 {[%clk 0:03:21.5]} 16...
Bg6 {[%clk 0:03:59.9]} 17. Bxe4 {[%clk 0:03:20.4]} 17... Bxe4 {[%clk 0:03:58.1]}
18. Ng2 {[%clk 0:03:05.6]} 18... Bxg2 {[%clk 0:03:56]} 19. Kxg2 {[%clk
0:03:04.6]} 19... Nf6 {[%clk 0:03:55.9]} 20. f4 {[%clk 0:03:01]} 20... Rfe8
{[%clk 0:03:55.8]} 21. h4 {[%clk 0:02:57.4]} 21... Ne4 {[%clk 0:03:55.7]} 22.
Rc2 {[%clk 0:02:43.4]} 22... Re7 {[%clk 0:03:55.6]} 23. a4 {[%clk 0:02:37.9]}
23... h5 {[%clk 0:03:54.5]} 24. b4 {[%clk 0:02:31.2]} 24... Nf6 {[%clk
0:03:49.1]} 25. Rce2 {[%clk 0:02:25.6]} 25... Rae8 {[%clk 0:03:47.5]} 26. Kf3
{[%clk 0:02:23.2]} 26... Ng4 {[%clk 0:03:45.9]} 27. e4 {[%clk 0:02:11.7]} 27...
Rxe4 {[%clk 0:03:41.8]} 28. Rxe4 {[%clk 0:02:09.1]} 28... Rxe4 {[%clk
0:03:41.7]} 29. Rxe4 {[%clk 0:02:02.7]} 29... dxe4+ {[%clk 0:03:41.6]} 30. Kxe4
{[%clk 0:02:01.5]} 30... Kf8 {[%clk 0:03:40.7]} 31. d5 {[%clk 0:01:55.5]} 31...
Nf6+ {[%clk 0:03:39]} 32. Kd4 {[%clk 0:01:51]} 32... Nxd5 {[%clk 0:03:38.9]} 33.
b5 {[%clk 0:01:48.5]} 33... Ke7 {[%clk 0:03:35.6]} 34. Kc5 {[%clk 0:01:38.6]}
34... Kd7 {[%clk 0:03:27.4]} 35. bxc6+ {[%clk 0:01:36.2]} 35... bxc6 {[%clk
0:03:27.3]} 36. a5 {[%clk 0:01:20.9]} 36... g6 {[%clk 0:03:23.7]} 37. a6 {[%clk
0:01:10.6]} 37... Ne3 {[%clk 0:03:20.7]} 38. Kd4 {[%clk 0:01:09.2]} 38... Nf1
{[%clk 0:03:19.1]} 39. Ke5 {[%clk 0:01:07.7]} 39... Nxg3 {[%clk 0:03:18]} 40.
Kf6 {[%clk 0:01:06.5]} 40... Ke8 {[%clk 0:03:15.6]} 41. Ke5 {[%clk 0:00:50.6]}
41... Nf5 {[%clk 0:03:15.5]} 42. Kf6 {[%clk 0:00:43.3]} 42... Nxh4 {[%clk
0:03:14.3]} 43. Ke5 {[%clk 0:00:28.2]} 43... Ng2 {[%clk 0:03:12.7]} 44. f5
{[%clk 0:00:25.9]} 44... gxf5 {[%clk 0:03:10.7]} 45. Kxf5 {[%clk 0:00:23.8]}
45... h4 {[%clk 0:03:10.6]} 0-1

[Event "Live Chess"]
[Site "Chess.com"]
[Date "2023.05.20"]
[Round "-"]
[White "Chesscoach_Golichenko"]
[Black "OBrightwell100"]
[Result "1-0"]
[WhiteElo "2644"]
[BlackElo "1334"]
[TimeControl "300"]
[EndTime "9:18:29 PDT"]
[Termination "Chesscoach_Golichenko won by checkmate"]

1. d4 {[%clk 0:04:57.8]} 1... d5 {[%clk 0:04:58.6]} 2. Nc3 {[%clk 0:04:52.8]}
2... a6 {[%clk 0:04:53.2]} 3. e4 {[%clk 0:04:40.7]} 3... e6 {[%clk 0:04:46.8]}
4. Nf3 {[%clk 0:04:33.8]} 4... Nc6 {[%clk 0:04:42]} 5. h3 {[%clk 0:04:29.4]}
5... Bb4 {[%clk 0:04:39.4]} 6. exd5 {[%clk 0:04:25.9]} 6... exd5 {[%clk
0:04:33.7]} 7. Bd3 {[%clk 0:04:24.3]} 7... Nge7 {[%clk 0:04:31]} 8. O-O {[%clk
0:04:05.7]} 8... O-O {[%clk 0:04:29.8]} 9. Bxh7+ {[%clk 0:04:01.4]} 9... Kxh7
{[%clk 0:04:22.8]} 10. Ng5+ {[%clk 0:04:00.2]} 10... Kg8 {[%clk 0:04:21.9]} 11.
Qh5 {[%clk 0:03:53]} 11... Bf5 {[%clk 0:04:20.4]} 12. Be3 {[%clk 0:03:44.4]}
12... f6 {[%clk 0:04:16.7]} 13. Nf3 {[%clk 0:03:38.6]} 13... Bg6 {[%clk
0:04:14.1]} 14. Qg4 {[%clk 0:03:36.8]} 14... Kf7 {[%clk 0:04:10.1]} 15. Ne2
{[%clk 0:03:31.7]} 15... Rh8 {[%clk 0:04:06.2]} 16. Ng3 {[%clk 0:03:19.7]} 16...
Bd6 {[%clk 0:03:46.5]} 17. Rae1 {[%clk 0:03:08.9]} 17... Bxg3 {[%clk 0:03:39.9]}
18. fxg3 {[%clk 0:03:04.3]} 18... Bf5 {[%clk 0:03:30.3]} 19. Qf4 {[%clk
0:03:00]} 19... g5 {[%clk 0:03:20.1]} 20. Nxg5+ {[%clk 0:02:51]} 20... fxg5
{[%clk 0:03:14.5]} 21. Qxg5 {[%clk 0:02:49.9]} 21... Qd7 {[%clk 0:03:07.2]} 22.
g4 {[%clk 0:02:46.4]} 22... Rag8 {[%clk 0:03:00.1]} 23. Qf4 {[%clk 0:02:41.1]}
23... Kf6 {[%clk 0:02:45.7]} 24. gxf5 {[%clk 0:02:31.9]} 24... Qxf5 {[%clk
0:02:39.1]} 25. Qxc7 {[%clk 0:02:24]} 25... Qxf1+ {[%clk 0:02:34.1]} 26. Rxf1+
{[%clk 0:02:22.4]} 26... Nf5 {[%clk 0:02:30]} 27. Qd6+ {[%clk 0:02:17.9]} 27...
Kg7 {[%clk 0:02:21.4]} 28. Rxf5 {[%clk 0:02:16.2]} 28... Rh6 {[%clk 0:02:11.5]}
29. Qxh6# {[%clk 0:02:08]} 1-0

[Event "Live Chess"]
[Site "Chess.com"]
[Date "2023.05.20"]
[Round "-"]
[White "JormaIbo"]
[Black "GEMdzq"]
[Result "0-1"]
[WhiteElo "428"]
[BlackElo "2346"]
[TimeControl "300"]
[EndTime "9:18:42 PDT"]
[Termination "GEMdzq won by checkmate"]

1. e4 {[%clk 0:04:56.6]} 1... d6 {[%clk 0:04:59.1]} 2. d4 {[%clk 0:04:53.8]}
2... Nf6 {[%clk 0:04:58.5]} 3. Nc3 {[%clk 0:04:51.6]} 3... g6 {[%clk 0:04:58.1]}
4. e5 {[%clk 0:04:46.4]} 4... dxe5 {[%clk 0:04:52.6]} 5. dxe5 {[%clk 0:04:45.8]}
5... Qxd1+ {[%clk 0:04:51.6]} 6. Nxd1 {[%clk 0:04:45.1]} 6... Nd5 {[%clk
0:04:48.1]} 7. Nf3 {[%clk 0:04:39.4]} 7... Bg7 {[%clk 0:04:46.3]} 8. Bc4 {[%clk
0:04:32.3]} 8... Nb4 {[%clk 0:04:43.1]} 9. Bd2 {[%clk 0:04:20.1]} 9... Nxc2+
{[%clk 0:04:41]} 10. Ke2 {[%clk 0:04:13.1]} 10... Nxa1 {[%clk 0:04:39.8]} 11.
Ne3 {[%clk 0:03:58.7]} 11... Nc6 {[%clk 0:04:32.4]} 12. Rxa1 {[%clk 0:03:56.9]}
12... Nxe5 {[%clk 0:04:29.8]} 13. Nxe5 {[%clk 0:03:53.8]} 13... Bxe5 {[%clk
0:04:29.7]} 14. Ng4 {[%clk 0:03:48.6]} 14... Bxg4+ {[%clk 0:04:25.4]} 15. Kf1
{[%clk 0:03:46.3]} 15... O-O-O {[%clk 0:04:23.7]} 16. Bxf7 {[%clk 0:03:26]}
16... Rxd2 {[%clk 0:04:19]} 17. f3 {[%clk 0:03:23]} 17... Bf5 {[%clk 0:04:14.7]}
18. Re1 {[%clk 0:03:16.9]} 18... Bd4 {[%clk 0:04:01.5]} 19. Rxe7 {[%clk
0:03:05.9]} 19... Bd3+ {[%clk 0:03:54.1]} 20. Ke1 {[%clk 0:03:02.4]} 20... Rxb2
{[%clk 0:03:44.6]} 21. Be6+ {[%clk 0:02:53.5]} 21... Kb8 {[%clk 0:03:43.1]} 22.
Rd7 {[%clk 0:02:48.9]} 22... Bc3+ {[%clk 0:03:41.9]} 23. Kd1 {[%clk 0:02:47.1]}
23... Rb1# {[%clk 0:03:40.1]} 0-1